fUSD/lending_fUSD_20241119
["ID","MTS","AMOUNT","RATE_DAILY","PERIOD"]
[342594624,1731984723979,-796.38,9.999e-05,2]
[342594625,1731984723988,-627.73719015,9.999e-05,2]
[342594626,1731984723999,-500.0,9.999e-05,2]
[342594627,1731984724008,-796.38,9.999e-05,2]
[342594628,1731984724018,-500.0,9.999e-05,2]
[342594629,1731984724027,-796.56,9.999e-05,2]
[342594630,1731984724037,-500.0,9.999e-05,2]
[342594631,1731984724047,-500.0,9.999e-05,2]
[342594632,1731984724056,-500.0,9.999e-05,2]
[342594633,1731984724066,-500.0,9.999e-05,2]
[342594634,1731984724076,-644.00897949,9.999e-05,2]
[342594635,1731984724086,-500.0,9.999e-05,2]
[342594636,1731984724096,-198.47567295,9.999e-05,2]
[342594637,1731984724105,-500.0,9.999e-05,2]
[342594638,1731984724114,-500.0,9.999e-05,2]
[342594639,1731984724123,-500.0,9.999e-05,2]
[342594640,1731984724132,-500.0,9.999e-05,2]
[342594641,1731984724142,-500.0,9.999e-05,2]
[342594642,1731984724151,-500.0,9.999e-05,2]
[342594643,1731984724160,-500.0,9.999e-05,2]
[342594644,1731984724169,-500.0,9.999e-05,2]
[342594645,1731984724179,-500.0,9.999e-05,2]
[342594646,1731984724188,-500.0,9.999e-05,2]
[342594647,1731984724198,-408.06585085,9.999e-05,2]
[342594648,1731984724207,-500.0,9.999e-05,2]
[342594649,1731984724216,-500.0,9.999e-05,2]
[342594650,1731984724225,-535.27276387,9.999e-05,2]
[342594651,1731984724234,-500.0,9.999e-05,2]
[342594652,1731984724243,-500.0,9.999e-05,2]
[342594653,1731984724252,-597.52371065,9.999e-05,2]
[342594654,1731984724261,-1481.15,9.999e-05,2]
[342594655,1731984724270,-500.0,9.999e-05,2]
[342594656,1731984724279,-1481.15,9.999e-05,2]
[342594657,1731984724288,-500.0,9.999e-05,2]
[342594658,1731984724298,-1481.15,9.999e-05,2]
[342594659,1731984724307,-500.0,9.999e-05,2]
[342594660,1731984724316,-377.82789175,9.999e-05,2]
[342594661,1731984724325,-1481.15,9.999e-05,2]
[342594662,1731984724334,-500.0,9.999e-05,2]
[342594663,1731984724343,-1481.15,9.999e-05,2]
[342594664,1731984724352,-1481.15,9.999e-05,2]
[342594665,1731984724361,-500.0,9.999e-05,2]
[342594666,1731984724371,-1481.15,9.999e-05,2]
[342594667,1731984724380,-500.0,9.999e-05,2]
[342594668,1731984724389,-1481.31,9.999e-05,2]
[342594669,1731984724399,-502.3156708,9.999e-05,2]
[342594670,1731984724407,-500.0,9.999e-05,2]
[342594671,1731984724416,-1269.97,9.999e-05,2]
[342594672,1731984724426,-500.0,9.999e-05,2]
[342594673,1731984724435,-1269.97,9.999e-05,2]
[342594674,1731984724444,-500.0,9.999e-05,2]
[342594675,1731984724454,-1269.97,9.999e-05,2]
[342594676,1731984724464,-500.0,9.999e-05,2]
[342594677,1731984724475,-1269.97,9.999e-05,2]
[342594678,1731984724484,-500.0,9.999e-05,2]
[342594679,1731984724494,-500.0,9.999e-05,2]
[342594680,1731984724504,-1269.97,9.999e-05,2]
[342594681,1731984724513,-500.0,9.999e-05,2]
[342594682,1731984724522,-1269.97,9.999e-05,2]
[342594683,1731984724531,-500.0,9.999e-05,2]
[342594684,1731984724541,-1270.1787934,9.999e-05,2]
[342594685,1731984724551,-500.0,9.999e-05,2]
[342594686,1731984724560,-500.0,9.999e-05,2]
[342594687,1731984724570,-500.0,9.999e-05,2]
[342594688,1731984724581,-885.89,9.999e-05,2]
[342594689,1731984724591,-425.68230857,9.999e-05,2]
[342594690,1731984724599,-885.89,9.999e-05,2]
[342594691,1731984724609,-885.89,9.999e-05,2]
[342594692,1731984724619,-500.0,9.999e-05,2]
[342594693,1731984724628,-500.0,9.999e-05,2]
[342594694,1731984724638,-885.89,9.999e-05,2]
[342594695,1731984724647,-500.0,9.999e-05,2]
[342594696,1731984724656,-885.89,9.999e-05,2]
[342594697,1731984724666,-500.0,9.999e-05,2]
[342594698,1731984724675,-175.2103348,9.999e-05,2]
[342594699,1731984724685,-500.0,9.999e-05,2]
[342594700,1731984724694,-500.0,9.999e-05,2]
[342594701,1731984724703,-500.0,9.999e-05,2]
[342594702,1731984724713,-412.52348574,9.999e-05,2]
[342594703,1731984724723,-694.54,9.999e-05,2]
[342594704,1731984724733,-694.54,9.999e-05,2]
[342594705,1731984724742,-694.54,9.999e-05,2]
[342594706,1731984724752,-500.0,9.999e-05,2]
[342594707,1731984724761,-694.54,9.999e-05,2]
[342594708,1731984724770,-694.54,9.999e-05,2]
[342594709,1731984724779,-500.0,9.999e-05,2]
[342594710,1731984724788,-694.54,9.999e-05,2]
[342594711,1731984724797,-500.0,9.999e-05,2]
[342594712,1731984724806,-694.57377668,9.999e-05,2]
[342594713,1731984724815,-500.0,9.999e-05,2]
[342594714,1731984724824,-500.0,9.999e-05,2]
[342594715,1731984724833,-500.0,9.999e-05,2]
[342594716,1731984724842,-288.07674231,9.999e-05,2]
[342594717,1731984724852,-4064.64,9.999e-05,2]
[342594718,1731984724861,-500.0,9.999e-05,2]
[342594719,1731984724870,-4064.64,9.999e-05,2]
[342594720,1731984724879,-4064.64,9.999e-05,2]
[342594721,1731984724888,-4064.64,9.999e-05,2]
[342594722,1731984724897,-500.0,9.999e-05,2]
[342594723,1731984724906,-4064.64,9.999e-05,2]
[342594724,1731984724915,-385.36937977,9.999e-05,2]
[342594725,1731984724924,-4064.64,9.999e-05,2]
[342594726,1731984724933,-4064.64,9.999e-05,2]
[342594727,1731984724942,-508.54,9.999e-05,2]
[342594728,1731984724951,-4064.69613133,9.999e-05,2]
[342594729,1731984724960,-508.54,9.999e-05,2]
[342594730,1731984724970,-508.54,9.999e-05,2]
[342594731,1731984724979,-508.54,9.999e-05,2]
[342594732,1731984724988,-508.54,9.999e-05,2]
[342594733,1731984724997,-508.54,9.999e-05,2]
[342594734,1731984725007,-508.60032824,9.999e-05,2]
[342594735,1731984725017,-500.0,9.999e-05,2]
[342594736,1731984725026,-500.0,9.999e-05,2]
[342594737,1731984725035,-500.0,9.999e-05,2]
[342594738,1731984725045,-203.48807559,9.999e-05,2]
[342594739,1731984725054,-943.94,9.999e-05,2]
[342594740,1731984725064,-943.94,9.999e-05,2]
[342594741,1731984725073,-943.94,9.999e-05,2]
[342594742,1731984725083,-943.94,9.999e-05,2]
[342594743,1731984725092,-943.94,9.999e-05,2]
[342594744,1731984725102,-943.94,9.999e-05,2]
[342594745,1731984725112,-944.03751628,9.999e-05,2]
[342594746,1731984725122,-3641.68,9.999e-05,2]
[342594747,1731984725131,-3641.68,9.999e-05,2]
[342594748,1731984725141,-3641.68,9.999e-05,2]
[342594749,1731984725150,-3641.68,9.999e-05,2]
[342594750,1731984725160,-3641.68,9.999e-05,2]
[342594751,1731984725170,-3641.68,9.999e-05,2]
[342594752,1731984725179,-401.83,9.999e-05,2]
[342594753,1731984725189,-782.95,9.999e-05,2]
[342594754,1731984725198,-3641.68,9.999e-05,2]
[342594755,1731984725208,-782.95,9.999e-05,2]
[342594756,1731984725219,-3641.8,9.999e-05,2]
[342594757,1731984725229,-782.95,9.999e-05,2]
[342594758,1731984725238,-782.95,9.999e-05,2]
[342594759,1731984725248,-782.95,9.999e-05,2]
[342594760,1731984725258,-782.95,9.999e-05,2]
[342594761,1731984725267,-783.17835821,9.999e-05,2]
[342594762,1731984725276,-774.51,9.999e-05,2]
[342594763,1731984725286,-774.51,9.999e-05,2]
[342594764,1731984725295,-774.51,9.999e-05,2]
[342594765,1731984725304,-774.51,9.999e-05,2]
[342594766,1731984725314,-618.9,9.999e-05,2]
[342594767,1731984725324,-618.9,9.999e-05,2]
[342594768,1731984725333,-774.51,9.999e-05,2]
[342594769,1731984725343,-618.9,9.999e-05,2]
[342594770,1731984725352,-774.51,9.999e-05,2]
[342594771,1731984725361,-774.54071578,9.999e-05,2]
[342594772,1731984725370,-618.9,9.999e-05,2]
[342594773,1731984725379,-618.9,9.999e-05,2]
[342594774,1731984725389,-618.9,9.999e-05,2]
[342594775,1731984725398,-618.9,9.999e-05,2]
[342594776,1731984725408,-618.9,9.999e-05,2]
[342594777,1731984725417,-618.9,9.999e-05,2]
[342594778,1731984725427,-618.9,9.999e-05,2]
[342594779,1731984725436,-42308.91446582,9.999e-05,2]
[342594780,1731984725446,-618.9,9.999e-05,2]
[342594781,1731984725455,-613.07,9.999e-05,2]
[342594782,1731984725466,-618.9,9.999e-05,2]
[342594783,1731984725476,-613.07,9.999e-05,2]
[342594784,1731984725485,-618.9,9.999e-05,2]
[342594785,1731984725495,-613.07,9.999e-05,2]
[342594786,1731984725504,-618.9,9.999e-05,2]
[342594787,1731984725514,-613.07,9.999e-05,2]
[342594788,1731984725523,-618.9,9.999e-05,2]
[342594789,1731984725533,-613.07,9.999e-05,2]
[342594790,1731984725543,-613.07,9.999e-05,2]
[342594791,1731984725553,-613.07,9.999e-05,2]
[342594792,1731984725563,-618.9,9.999e-05,2]
[342594793,1731984725576,-613.14646881,9.999e-05,2]
[342594794,1731984725586,-518.56,9.999e-05,2]
[342594795,1731984725595,-618.9,9.999e-05,2]
[342594796,1731984725605,-518.56,9.999e-05,2]
[342594797,1731984725615,-619.0060879,9.999e-05,2]
[342594798,1731984725625,-518.56,9.999e-05,2]
[342594799,1731984725634,-518.56,9.999e-05,2]
[342594800,1731984725644,-518.56,9.999e-05,2]
[342594801,1731984725656,-518.56,9.999e-05,2]
[342594802,1731984725666,-518.68991209,9.999e-05,2]
[342594803,1731984725676,-610.79,9.999e-05,2]
[342594804,1731984725687,-610.79,9.999e-05,2]
[342594805,1731984725696,-610.79,9.999e-05,2]
[342594806,1731984725706,-610.79,9.999e-05,2]
[342594807,1731984725716,-610.79,9.999e-05,2]
[342594808,1731984725725,-610.79,9.999e-05,2]
[342594809,1731984725735,-610.81534674,9.999e-05,2]
[342594810,1731984725744,-500.0,9.999e-05,2]
[342594811,1731984725754,-500.0,9.999e-05,2]
[342594812,1731984725763,-500.0,9.999e-05,2]
[342594813,1731984725773,-500.0,9.999e-05,2]
[342594814,1731984725782,-500.0,9.999e-05,2]
[342594815,1731984725792,-500.0,9.999e-05,2]
[342594816,1731984725801,-168.24067553,9.999e-05,2]
[342594817,1731984725811,-500.0,9.999e-05,2]
[342594818,1731984725820,-500.0,9.999e-05,2]
[342594819,1731984725829,-500.0,9.999e-05,2]
[342594820,1731984725839,-230.39150444,9.999e-05,2]
[342594821,1731984725849,-500.0,9.999e-05,2]
[342594822,1731984725858,-500.0,9.999e-05,2]
[342594823,1731984725868,-500.0,9.999e-05,2]
[342594824,1731984725878,-500.0,9.999e-05,2]
[342594825,1731984725887,-500.0,9.999e-05,2]
[342594826,1731984725897,-185.51021586,9.999e-05,2]
[342594827,1731984725907,-500.0,9.999e-05,2]
[342594828,1731984725916,-500.0,9.999e-05,2]
[342594829,1731984725926,-500.0,9.999e-05,2]
[342594830,1731984725936,-500.0,9.999e-05,2]
[342594831,1731984725946,-500.0,9.999e-05,2]
[342594832,1731984725956,-354.29567574,9.999e-05,2]
[342594833,1731984725966,-500.0,9.999e-05,2]
[342594834,1731984725976,-500.0,9.999e-05,2]
[342594835,1731984725986,-500.0,9.999e-05,2]
[342594836,1731984725996,-500.0,9.999e-05,2]
[342594837,1731984726006,-432.76299164,9.999e-05,2]
[342594838,1731984726017,-500.0,9.999e-05,2]
[342594839,1731984726026,-500.0,9.999e-05,2]
[342594840,1731984726036,-500.0,9.999e-05,2]
[342594841,1731984726046,-500.0,9.999e-05,2]
[342594842,1731984726056,-488.46963477,9.999e-05,2]
[342594843,1731984726066,-6522001.70715647,0.0001,2]
[342594844,1731984726479,-892.46,9.996e-05,2]
[342594845,1731984726489,-4390.07928852,0.0001,2]
[342594846,1731984726501,-376.55427809,0.0001,2]
[342594847,1731984726707,-259.09,9.863e-05,2]
[342594848,1731984726716,-160.67083023,9.863e-05,2]
[342594849,1731984726728,-339.32916977,9.863e-05,2]
[342594850,1731984726737,-500.0,9.863e-05,2]
[342594851,1731984726747,-500.0,9.897e-05,2]
[342594852,1731984726757,-500.0,9.897e-05,2]
[342594853,1731984726766,-500.0,9.897e-05,2]
[342594854,1731984726776,-500.0,9.897e-05,2]
[342594855,1731984726786,-500.0,9.898e-05,2]
[342594856,1731984726795,-892.46,9.997e-05,2]
[342594857,1731984726806,-892.46,9.997e-05,2]
[342594858,1731984726816,-500.0,9.997e-05,2]
[342594859,1731984726826,-892.46,9.998e-05,2]
[342594860,1731984726836,-892.46,9.998e-05,2]
[342594861,1731984726846,-892.46,9.998e-05,2]
[342594862,1731984726856,-892.46,9.998e-05,2]
[342594863,1731984726866,-14759.37328843,0.0001,2]
[342594864,1731984727160,-500.0,9.898e-05,2]
[342594865,1731984727170,-498.45,9.998e-05,2]
[342594866,1731984727488,-500.0,9.863e-05,2]
[342594867,1731984727498,-500.0,9.863e-05,2]
[342594868,1731984727507,-500.0,9.863e-05,2]
[342594869,1731984727517,-500.0,9.863e-05,2]
[342594870,1731984727526,-429.95115873,9.896e-05,2]
[342594871,1731984727535,-500.0,9.997e-05,2]
[342594872,1731984727545,-394.01,9.998e-05,2]
[342594873,1731984727554,-500.0,9.998e-05,2]
[342594874,1731984727563,-93.4883048,9.998e-05,2]
[342594875,1731984727617,-6004.13385151,9.49e-05,2]
[342594876,1731984727629,-1786.0000002,9.49e-05,2]
[342594877,1731984727641,-2432.0,9.49e-05,2]
[342594878,1731984727890,-540.71569304,9.49e-05,2]
[342594879,1731984727901,-2501.5175045,9.49e-05,2]
[342594880,1731984763201,257.68,8.219e-05,2]
[342594881,1731984811233,500.0,0.00022703,120]
[342594885,1731985040993,250.0,8.295e-05,2]
[342594887,1731985093117,809.77,8.268e-05,2]
[342594888,1731985187181,23900.0,8.298e-05,2]
[342594889,1731985263240,250.0,8.29e-05,2]
[342594891,1731985411734,500.0,0.00022703,120]
[342594892,1731985443874,250.29361913,0.00023,120]
[342594893,1731985451109,318.70860831,0.00013697,120]
[342594894,1731985473687,244.79,8.219e-05,2]
[342594895,1731985484260,163.3,8.388e-05,2]
[342594896,1731985484589,250.0,8.388e-05,2]
[342594898,1731985562495,1000.0,8.477e-05,2]
[342594906,1731985832258,-165.92,8.579e-05,2]
[342594907,1731985832268,-6885.9267,8.75e-05,2]
[342594908,1731985832280,-186.55,8.917e-05,2]
[342594909,1731985832289,-186.55,8.92e-05,2]
[342594910,1731985832300,-186.55,8.922e-05,2]
[342594911,1731985832309,-222.0,8.925e-05,2]
[342594912,1731985832319,-186.55,8.925e-05,2]
[342594913,1731985832328,-222.0,8.927e-05,2]
[342594914,1731985832338,-222.0,8.927e-05,2]
[342594915,1731985832348,-222.0,8.927e-05,2]
[342594916,1731985832358,-222.0,8.927e-05,2]
[342594917,1731985832367,-222.0,8.927e-05,2]
[342594918,1731985832377,-186.55,8.927e-05,2]
[342594919,1731985832388,-222.0,8.929e-05,2]
[342594920,1731985832399,-186.55,8.929e-05,2]
[342594921,1731985832409,-186.55,8.932e-05,2]
[342594922,1731985832419,-186.55,8.934e-05,2]
[342594923,1731985832431,-186.55,8.936e-05,2]
[342594924,1731985832442,-186.55,8.939e-05,2]
[342594925,1731985832452,-186.55,8.941e-05,2]
[342594926,1731985832461,-186.55,8.943e-05,2]
[342594927,1731985832470,-186.55,8.946e-05,2]
[342594928,1731985832480,-186.55,8.948e-05,2]
[342594929,1731985832490,-968.82,8.95e-05,2]
[342594930,1731985832499,-186.55,8.95e-05,2]
[342594931,1731985832508,-186.55,8.953e-05,2]
[342594932,1731985832518,-186.55,8.955e-05,2]
[342594933,1731985832528,-186.55,8.957e-05,2]
[342594934,1731985832538,-186.55,8.96e-05,2]
[342594935,1731985832547,-433.13,8.96e-05,2]
[342594936,1731985832557,-763.49,8.96e-05,2]
[342594937,1731985832567,-150.0,8.96e-05,2]
[342594938,1731985832576,-705.97,8.96e-05,2]
[342594939,1731985832586,-968.82,8.96e-05,2]
[342594940,1731985832863,-186.55,8.962e-05,2]
[342594941,1731985832873,-866.26,8.991e-05,2]
[342594942,1731985832883,-1407.56,8.991e-05,2]
[342594943,1731985832893,-764.05,8.991e-05,2]
[342594944,1731985832902,-433.13,8.991e-05,2]
[342594945,1731985832912,-150.77209339,9e-05,2]
[342594946,1731985832923,-163.9,9.013e-05,2]
[342594947,1731985832932,-968.82,9.048e-05,2]
[342594948,1731985832942,-968.82,9.088e-05,2]
[342594949,1731985832952,-150.0,9.128e-05,2]
[342594950,1731985832962,-1937.64,9.128e-05,2]
[342594951,1731985832972,-871.96,9.128e-05,2]
[342594952,1731985832982,-968.82,9.128e-05,2]
[342594953,1731985832991,-433.37,9.128e-05,2]
[342594954,1731985833000,-300.0,9.178e-05,2]
[342594955,1731985833010,-150.0,9.178e-05,2]
[342594956,1731985833020,-300.55,9.178e-05,2]
[342594957,1731985833030,-26174.0,9.193e-05,2]
[342594958,1731985833040,-809.77,9.301e-05,2]
[342594959,1731985833049,-167.0791,9.39e-05,2]
[342594960,1731985833059,-150.0,9.428e-05,2]
[342594961,1731985833069,-4795.49995075,9.49e-05,2]
[342594962,1731985833079,-1000.0,9.499e-05,2]
[342594963,1731985833088,-11787.3853,9.5e-05,2]
[342594964,1731985833098,-968.82,9.5e-05,2]
[342594965,1731985833107,-1000.0,9.536e-05,2]
[342594966,1731985833118,-200.0,9.6e-05,2]
[342594967,1731985833128,-200.0,9.6e-05,2]
[342594968,1731985833139,-961.59,9.6e-05,2]
[342594969,1731985833149,-588.29469583,9.663e-05,2]
[342594970,1731985833159,-2333.01,9.67e-05,2]
[342594971,1731985833170,-381.06,9.67e-05,2]
[342594972,1731985833180,-150.0,9.721e-05,2]
[342594973,1731985833190,-150.0,9.724e-05,2]
[342594974,1731985833201,-150.0,9.725e-05,2]
[342594975,1731985833211,-150.0,9.727e-05,2]
[342594976,1731985833220,-150.0,9.727e-05,2]
[342594977,1731985833231,-1500.0,9.728e-05,2]
[342594978,1731985833240,-150.0,9.732e-05,2]
[342594979,1731985833250,-150.0,9.743e-05,2]
[342594980,1731985833259,-150.0,9.744e-05,2]
[342594981,1731985833269,-1512.37465556,9.744e-05,2]
[342594982,1731985833279,-443.96639735,9.749e-05,2]
[342594983,1731985833288,-150.0,9.75e-05,2]
[342594984,1731985833298,-150.0,9.757e-05,2]
[342594985,1731985833307,-150.0,9.761e-05,2]
[342594986,1731985833317,-150.0,9.763e-05,2]
[342594987,1731985833327,-150.0,9.763e-05,2]
[342594988,1731985833336,-78681.2507,9.763e-05,2]
[342594989,1731985833346,-1311.8397,9.763e-05,2]
[342594990,1731985833355,-628.488,9.763e-05,2]
[342594991,1731985833365,-424.237,9.763e-05,2]
[342594992,1731985833374,-5000.0,9.763e-05,2]
[342594993,1731985833384,-610.8925,9.763e-05,2]
[342594994,1731985833393,-150.0,9.772e-05,2]
[342594995,1731985833402,-150.0,9.779e-05,2]
[342594996,1731985833412,-150.0,9.783e-05,2]
[342594997,1731985833423,-1500.0,9.79e-05,2]
[342594998,1731985833432,-150.0,9.791e-05,2]
[342594999,1731985833442,-150.0,9.793e-05,2]
[342595000,1731985833451,-150.0,9.799e-05,2]
[342595001,1731985833461,-150.0,9.8e-05,2]
[342595002,1731985833470,-150.0,9.8e-05,2]
[342595003,1731985833481,-427.3244,9.808e-05,2]
[342595004,1731985833490,-150.0,9.81e-05,2]
[342595005,1731985833500,-1500.0,9.812e-05,2]
[342595006,1731985833509,-150.0,9.812e-05,2]
[342595007,1731985833518,-150.0,9.813e-05,2]
[342595008,1731985833528,-150.0,9.818e-05,2]
[342595009,1731985833538,-150.0,9.819e-05,2]
[342595010,1731985833548,-1500.0,9.819e-05,2]
[342595011,1731985833558,-165.55127719,9.821e-05,2]
[342595012,1731985833567,-1933.752,9.829e-05,2]
[342595013,1731985833577,-563.308,9.829e-05,2]
[342595014,1731985833586,-3753.159,9.829e-05,2]
[342595015,1731985833596,-816.0,9.829e-05,2]
[342595016,1731985833605,-1263.515,9.829e-05,2]
[342595017,1731985833615,-925.09,9.829e-05,2]
[342595018,1731985833624,-3506.103,9.829e-05,2]
[342595019,1731985833634,-150.0,9.831e-05,2]
[342595020,1731985833644,-150.0,9.834e-05,2]
[342595021,1731985833655,-150.0,9.839e-05,2]
[342595022,1731985833665,-150.0,9.839e-05,2]
[342595023,1731985833676,-500.0,9.843e-05,2]
[342595024,1731985833685,-214.92729495,9.843e-05,2]
[342595025,1731985833694,-229.1981798,9.843e-05,2]
[342595026,1731985833704,-500.0,9.843e-05,2]
[342595027,1731985833714,-160.59951623,9.843e-05,2]
[342595028,1731985833723,-5936.0,9.848e-05,2]
[342595029,1731985833733,-242.867,9.848e-05,2]
[342595030,1731985833743,-1091.0,9.848e-05,2]
[342595031,1731985833752,-150.0,9.848e-05,2]
[342595032,1731985833761,-150.0,9.85e-05,2]
[342595033,1731985833771,-433.37,9.852e-05,2]
[342595034,1731985833781,-436.31,9.852e-05,2]
[342595035,1731985833791,-433.37,9.852e-05,2]
[342595036,1731985833800,-1500.0,9.856e-05,2]
[342595037,1731985833809,-150.0,9.856e-05,2]
[342595038,1731985833818,-150.0,9.856e-05,2]
[342595039,1731985833828,-255.0,9.856e-05,2]
[342595040,1731985833839,-150.0,9.857e-05,2]
[342595041,1731985833848,-150.0,9.86e-05,2]
[342595042,1731985833857,-541.0,9.863e-05,2]
[342595043,1731985833866,-518.44145098,9.863e-05,2]
[342595044,1731985833876,-500.0,9.863e-05,2]
[342595045,1731985833886,-500.0,9.863e-05,2]
[342595046,1731985833895,-500.0,9.863e-05,2]
[342595047,1731985833905,-548.38142212,9.863e-05,2]
[342595048,1731985833915,-499.38077386,9.863e-05,2]
[342595049,1731985833925,-500.0,9.863e-05,2]
[342595050,1731985833936,-500.0,9.863e-05,2]
[342595051,1731985833948,-500.0,9.863e-05,2]
[342595052,1731985833958,-645.61421205,9.863e-05,2]
[342595053,1731985833968,-500.0,9.863e-05,2]
[342595054,1731985833978,-500.0,9.863e-05,2]
[342595055,1731985833988,-500.0,9.863e-05,2]
[342595056,1731985833997,-398.09275964,9.863e-05,2]
[342595057,1731985834007,-500.0,9.863e-05,2]
[342595058,1731985834017,-500.0,9.863e-05,2]
[342595059,1731985834028,-500.0,9.863e-05,2]
[342595060,1731985834037,-502.0723256,9.863e-05,2]
[342595061,1731985834046,-500.0,9.863e-05,2]
[342595062,1731985834055,-502.60176514,9.863e-05,2]
[342595063,1731985834065,-243.64685807,9.863e-05,2]
[342595064,1731985834074,-266.4608862,9.863e-05,2]
[342595065,1731985834083,-501.41253692,9.863e-05,2]
[342595066,1731985834093,-500.17378467,9.863e-05,2]
[342595067,1731985834102,-500.0,9.863e-05,2]
[342595068,1731985834113,-412.37821631,9.863e-05,2]
[342595069,1731985834122,-500.0,9.863e-05,2]
[342595070,1731985834132,-505.23221663,9.863e-05,2]
[342595071,1731985834141,-500.0,9.863e-05,2]
[342595072,1731985834150,-500.0,9.863e-05,2]
[342595073,1731985834160,-257.24356244,9.863e-05,2]
[342595074,1731985834169,-500.5654329,9.863e-05,2]
[342595075,1731985834179,-500.0,9.863e-05,2]
[342595076,1731985834188,-500.0,9.863e-05,2]
[342595077,1731985834197,-627.26296954,9.863e-05,2]
[342595078,1731985834208,-500.0,9.863e-05,2]
[342595079,1731985834219,-500.0,9.863e-05,2]
[342595080,1731985834228,-500.0,9.863e-05,2]
[342595081,1731985834237,-500.0,9.863e-05,2]
[342595082,1731985834246,-500.0,9.863e-05,2]
[342595083,1731985834256,-500.0,9.863e-05,2]
[342595084,1731985834265,-500.0,9.863e-05,2]
[342595085,1731985834274,-500.0,9.863e-05,2]
[342595086,1731985834283,-500.0,9.863e-05,2]
[342595087,1731985834293,-500.0,9.863e-05,2]
[342595088,1731985834302,-500.0,9.863e-05,2]
[342595089,1731985834312,-500.0,9.863e-05,2]
[342595090,1731985834322,-500.0,9.863e-05,2]
[342595091,1731985834331,-500.0,9.863e-05,2]
[342595092,1731985834342,-500.0,9.863e-05,2]
[342595093,1731985834351,-500.0,9.863e-05,2]
[342595094,1731985834360,-500.0,9.863e-05,2]
[342595095,1731985834370,-500.0,9.863e-05,2]
[342595096,1731985834379,-500.0,9.863e-05,2]
[342595097,1731985834388,-500.0,9.863e-05,2]
[342595098,1731985834397,-500.0,9.863e-05,2]
[342595099,1731985834407,-500.0,9.863e-05,2]
[342595100,1731985834416,-500.0,9.863e-05,2]
[342595101,1731985834428,-500.0,9.863e-05,2]
[342595102,1731985834437,-500.0,9.863e-05,2]
[342595103,1731985834446,-500.0,9.863e-05,2]
[342595104,1731985834456,-500.0,9.863e-05,2]
[342595105,1731985834465,-500.0,9.863e-05,2]
[342595106,1731985834474,-537.95536118,9.863e-05,2]
[342595107,1731985834483,-500.0,9.863e-05,2]
[342595108,1731985834492,-500.0,9.863e-05,2]
[342595109,1731985834501,-500.0,9.863e-05,2]
[342595110,1731985834510,-500.0,9.863e-05,2]
[342595111,1731985834520,-501.62264938,9.863e-05,2]
[342595112,1731985834529,-500.0,9.863e-05,2]
[342595113,1731985834539,-262.93075439,9.863e-05,2]
[342595114,1731985834548,-500.0,9.863e-05,2]
[342595115,1731985834557,-500.0,9.863e-05,2]
[342595116,1731985834567,-500.0,9.863e-05,2]
[342595117,1731985834576,-500.0,9.863e-05,2]
[342595118,1731985834586,-502.33307952,9.863e-05,2]
[342595119,1731985834595,-500.0,9.863e-05,2]
[342595120,1731985834604,-500.0,9.863e-05,2]
[342595121,1731985834614,-500.0,9.863e-05,2]
[342595122,1731985834623,-500.0,9.863e-05,2]
[342595123,1731985834632,-500.0,9.863e-05,2]
[342595124,1731985834641,-549.2,9.863e-05,2]
[342595125,1731985834651,-329.30009278,9.863e-05,2]
[342595126,1731985834660,-500.0,9.863e-05,2]
[342595127,1731985834670,-500.0,9.863e-05,2]
[342595128,1731985834680,-500.9146013,9.863e-05,2]
[342595129,1731985834689,-500.0,9.863e-05,2]
[342595130,1731985834699,-199.68,9.863e-05,2]
[342595131,1731985834708,-521.56073622,9.863e-05,2]
[342595132,1731985834718,-500.0,9.863e-05,2]
[342595133,1731985834730,-500.0,9.863e-05,2]
[342595134,1731985834739,-558.95883827,9.863e-05,2]
[342595135,1731985834749,-509.30610364,9.863e-05,2]
[342595136,1731985834758,-500.758467,9.863e-05,2]